[Event "Titled Tuesday Blitz March 01 Late 2022"]
[White "Rosen, Eric"]
[Black "Ribeiro, Matheus Mendes Domingues"]
[WhiteFideId "2032562"]
[BlackFideId "324226923"]
[WhiteElo "2362"]
[BlackElo "1886"]
[Result "1/2-1/2"]
[Round "11"]
[TimeControl "180+1"]
[Date "2022.03.01"]
[WhiteClock "0:00:05"]
[BlackClock "0:00:11"]

1. e4 {[%clk 0:03:00]}  c5 {[%clk 0:03:00]} 2. Nc3 {[%clk 0:02:58]}  e6 {[%clk 0:02:56]} 3. f4 {[%clk 0:02:57]}  Nc6 {[%clk 0:02:56]} 4. Nf3 {[%clk 0:02:57]}  Nf6 {[%clk 0:02:54]} 5. Bb5 {[%clk 0:02:52]}  Nd4 {[%clk 0:02:51]} 6. Bd3 {[%clk 0:02:49]}  d5 {[%clk 0:02:44]} 7. e5 {[%clk 0:02:45]}  Nd7 {[%clk 0:02:45]} 8. Nxd4 {[%clk 0:02:45]}  cxd4 {[%clk 0:02:44]} 9. Ne2 {[%clk 0:02:46]}  Qb6 {[%clk 0:02:30]} 10. c3 {[%clk 0:02:34]}  Nc5 {[%clk 0:02:26]} 11. Bb1 {[%clk 0:02:20]}  dxc3 {[%clk 0:02:12]} 12. dxc3 {[%clk 0:02:19]}  Bd7 {[%clk 0:02:10]} 13. Nd4 {[%clk 0:02:18]}  Rc8 {[%clk 0:01:49]} 14. O-O {[%clk 0:02:17]}  Be7 {[%clk 0:01:48]} 15. Kh1 {[%clk 0:02:17]}  g6 {[%clk 0:01:47]} 16. Qe2 {[%clk 0:02:06]}  a6 {[%clk 0:01:44]} 17. Be3 {[%clk 0:02:07]}  Bb5 {[%clk 0:01:37]} 18. Nxb5 {[%clk 0:02:04]}  Qxb5 {[%clk 0:01:38]} 19. Qxb5+ {[%clk 0:01:34]}  axb5 {[%clk 0:01:37]} 20. a3 {[%clk 0:01:35]}  Nb3 {[%clk 0:01:21]} 21. Ra2 {[%clk 0:01:34]}  Bc5 {[%clk 0:01:17]} 22. Bxc5 {[%clk 0:01:05]}  Nxc5 {[%clk 0:01:18]} 23. Bc2 {[%clk 0:01:05]}  Ke7 {[%clk 0:01:18]} 24. Raa1 {[%clk 0:01:05]}  Rhd8 {[%clk 0:01:17]} 25. Rad1 {[%clk 0:01:05]}  Na4 {[%clk 0:01:06]} 26. Bxa4 {[%clk 0:00:29]}  bxa4 {[%clk 0:01:07]} 27. Rd4 {[%clk 0:00:29]}  Rc4 {[%clk 0:01:04]} 28. Rfd1 {[%clk 0:00:29]}  b5 {[%clk 0:01:03]} 29. Kg1 {[%clk 0:00:27]}  Kd7 {[%clk 0:00:47]} 30. Kf2 {[%clk 0:00:26]}  Kc6 {[%clk 0:00:47]} 31. Ke3 {[%clk 0:00:27]}  Kc5 {[%clk 0:00:38]} 32. g3 {[%clk 0:00:25]}  h5 {[%clk 0:00:38]} 33. h3 {[%clk 0:00:24]}  Rh8 {[%clk 0:00:36]} 34. Kf3 {[%clk 0:00:16]}  Rc8 {[%clk 0:00:24]} 35. R1d2 {[%clk 0:00:17]}  Rh8 {[%clk 0:00:24]} 36. R4d3 {[%clk 0:00:16]}  Rd8 {[%clk 0:00:23]} 37. Kg2 {[%clk 0:00:15]}  d4 {[%clk 0:00:22]} 38. Kf3 {[%clk 0:00:11]}  dxc3 {[%clk 0:00:16]} 39. Rxd8 {[%clk 0:00:11]}  cxd2 {[%clk 0:00:16]} 40. Rxd2 {[%clk 0:00:12]}  Rd4 {[%clk 0:00:17]} 41. Rc2+ {[%clk 0:00:12]}  Rc4 {[%clk 0:00:17]} 42. Rd2 {[%clk 0:00:13]}  Rd4 {[%clk 0:00:18]} 43. Rc2+ {[%clk 0:00:12]}  Rc4 {[%clk 0:00:19]} 44. Rf2 {[%clk 0:00:08]}  b4 {[%clk 0:00:14]} 45. axb4+ {[%clk 0:00:04]}  Kxb4 {[%clk 0:00:15]} 46. g4 {[%clk 0:00:04]}  hxg4+ {[%clk 0:00:15]} 47. hxg4 {[%clk 0:00:05]}  Kb3 {[%clk 0:00:15]} 48. f5 {[%clk 0:00:02]}  gxf5 {[%clk 0:00:15]} 49. gxf5 {[%clk 0:00:03]}  exf5 {[%clk 0:00:15]} 50. Ke3 {[%clk 0:00:03]}  Rc2 {[%clk 0:00:16]} 51. Rxf5 {[%clk 0:00:03]}  Rc7 {[%clk 0:00:15]} 52. Rf2 {[%clk 0:00:03]}  Rc2 {[%clk 0:00:05]} 53. Rxf7 {[%clk 0:00:03]}  Kxb2 {[%clk 0:00:05]} 54. Rb7+ {[%clk 0:00:03]}  Ka2 {[%clk 0:00:06]} 55. e6 {[%clk 0:00:04]}  Rc1 {[%clk 0:00:06]} 56. Kd4 {[%clk 0:00:04]}  a3 {[%clk 0:00:06]} 57. Rb5 {[%clk 0:00:03]}  Rd1+ {[%clk 0:00:06]} 58. Ke5 {[%clk 0:00:03]}  Re1+ {[%clk 0:00:07]} 59. Kd6 {[%clk 0:00:03]}  Ka1 {[%clk 0:00:07]} 60. e7 {[%clk 0:00:02]}  Rd1+ {[%clk 0:00:06]} 61. Rd5 {[%clk 0:00:02]}  Re1 {[%clk 0:00:05]} 62. Re5 {[%clk 0:00:03]}  Rxe5 {[%clk 0:00:04]} 63. Kxe5 {[%clk 0:00:03]}  a2 {[%clk 0:00:05]} 64. e8=Q {[%clk 0:00:04]}  Kb1 {[%clk 0:00:06]} 65. Qb5+ {[%clk 0:00:04]}  Ka1 {[%clk 0:00:06]} 66. Qa4 {[%clk 0:00:04]}  Kb1 {[%clk 0:00:07]} 67. Qb3+ {[%clk 0:00:05]}  Ka1 {[%clk 0:00:07]} 68. Qc3+ {[%clk 0:00:05]}  Kb1 {[%clk 0:00:08]} 69. Qe1+ {[%clk 0:00:05]}  Kb2 {[%clk 0:00:08]} 70. Qd2+ {[%clk 0:00:05]}  Kb1 {[%clk 0:00:09]} 71. Qd3+ {[%clk 0:00:05]}  Kb2 {[%clk 0:00:09]} 72. Qb5+ {[%clk 0:00:06]}  Ka1 {[%clk 0:00:10]} 73. Qa5 {[%clk 0:00:04]}  Kb1 {[%clk 0:00:09]} 74. Qb6+ {[%clk 0:00:04]}  Ka1 {[%clk 0:00:09]} 75. Qd4+ {[%clk 0:00:04]}  Kb1 {[%clk 0:00:09]} 76. Qd3+ {[%clk 0:00:05]}  Kb2 {[%clk 0:00:09]} 77. Qe2+ {[%clk 0:00:05]}  Kb1 {[%clk 0:00:10]} 78. Qf1+ {[%clk 0:00:05]}  Kb2 {[%clk 0:00:10]} 79. Qf2+ {[%clk 0:00:06]}  Kb1 {[%clk 0:00:11]} 80. Qg1+ {[%clk 0:00:06]}  Kb2 {[%clk 0:00:11]} 81. Qg6 {[%clk 0:00:07]}  a1=Q {[%clk 0:00:11]} 82. Kd5 {[%clk 0:00:06]}  Qd1+ {[%clk 0:00:11]} 83. Kc5 {[%clk 0:00:06]}  Qc2+ {[%clk 0:00:11]} 84. Qxc2+ {[%clk 0:00:05]}  Kxc2 {[%clk 0:00:11]} 1/2-1/2


[Site "https://www.chess.com"]

[Event "Titled Tuesday Blitz March 01 Late 2022"]
[White "Ruiz Aguilar, Pablo Alexander"]
[Black "Bryakin, Mikhail"]
[WhiteFideId "4401352"]
[BlackFideId "4165314"]
[WhiteElo "2125"]
[BlackElo "2421"]
[Result "0-1"]
[Round "11"]
[TimeControl "180+1"]
[Date "2022.03.01"]
[WhiteClock "0:00:06"]
[BlackClock "0:02:32"]

1. e4 {[%clk 0:03:00]}  e6 {[%clk 0:02:59]} 2. d4 {[%clk 0:03:00]}  d5 {[%clk 0:02:59]} 3. e5 {[%clk 0:03:00]}  c5 {[%clk 0:02:59]} 4. c3 {[%clk 0:03:01]}  Qb6 {[%clk 0:03:00]} 5. Nf3 {[%clk 0:03:01]}  Nc6 {[%clk 0:03:00]} 6. a3 {[%clk 0:03:01]}  c4 {[%clk 0:03:00]} 7. Nbd2 {[%clk 0:02:59]}  Na5 {[%clk 0:03:00]} 8. Be2 {[%clk 0:02:58]}  Bd7 {[%clk 0:03:00]} 9. O-O {[%clk 0:02:55]}  h6 {[%clk 0:03:01]} 10. Ne1 {[%clk 0:02:50]}  Ne7 {[%clk 0:03:00]} 11. f4 {[%clk 0:02:50]}  O-O-O {[%clk 0:02:55]} 12. Kh1 {[%clk 0:02:47]}  g6 {[%clk 0:02:54]} 13. Rb1 {[%clk 0:02:37]}  h5 {[%clk 0:02:53]} 14. Ndf3 {[%clk 0:02:33]}  Bh6 {[%clk 0:02:52]} 15. g3 {[%clk 0:02:29]}  Qc6 {[%clk 0:02:48]} 16. Ng2 {[%clk 0:02:28]}  Qa4 {[%clk 0:02:48]} 17. Be3 {[%clk 0:02:25]}  Qxd1 {[%clk 0:02:48]} 18. Bxd1 {[%clk 0:02:24]}  b5 {[%clk 0:02:47]} 19. Bc2 {[%clk 0:02:24]}  Nac6 {[%clk 0:02:46]} 20. Ng5 {[%clk 0:02:23]}  Rdf8 {[%clk 0:02:45]} 21. Nh4 {[%clk 0:02:18]}  a5 {[%clk 0:02:44]} 22. Ra1 {[%clk 0:02:17]}  Kc7 {[%clk 0:02:45]} 23. Kg2 {[%clk 0:02:16]}  Nf5 {[%clk 0:02:44]} 24. Nxf5 {[%clk 0:02:14]}  exf5 {[%clk 0:02:44]} 25. Nf3 {[%clk 0:02:08]}  Be6 {[%clk 0:02:44]} 26. Bf2 {[%clk 0:02:07]}  Ra8 {[%clk 0:02:45]} 27. h4 {[%clk 0:02:03]}  Rhb8 {[%clk 0:02:45]} 28. Ng5 {[%clk 0:01:51]}  Bf8 {[%clk 0:02:45]} 29. Nh7 {[%clk 0:01:50]}  Be7 {[%clk 0:02:44]} 30. Nf6 {[%clk 0:01:50]}  Bxf6 {[%clk 0:02:41]} 31. exf6 {[%clk 0:01:50]}  Rb7 {[%clk 0:02:41]} 32. Rfe1 {[%clk 0:01:48]}  Nb8 {[%clk 0:02:42]} 33. Re5 {[%clk 0:01:46]}  Nd7 {[%clk 0:02:42]} 34. Ree1 {[%clk 0:01:43]}  Nxf6 {[%clk 0:02:42]} 35. Re2 {[%clk 0:01:34]}  Rba7 {[%clk 0:02:43]} 36. Rae1 {[%clk 0:01:31]}  Kd6 {[%clk 0:02:43]} 37. Re5 {[%clk 0:01:29]}  b4 {[%clk 0:02:42]} 38. axb4 {[%clk 0:01:28]}  axb4 {[%clk 0:02:43]} 39. R5e2 {[%clk 0:01:13]}  b3 {[%clk 0:02:39]} 40. Bb1 {[%clk 0:01:13]}  Ra1 {[%clk 0:02:39]} 41. Be3 {[%clk 0:01:09]}  Ne4 {[%clk 0:02:39]} 42. Bxe4 {[%clk 0:01:08]}  fxe4 {[%clk 0:02:40]} 43. Kf2 {[%clk 0:01:03]}  Bg4 {[%clk 0:02:39]} 44. Rxa1 {[%clk 0:01:01]}  Rxa1 {[%clk 0:02:40]} 45. Re1 {[%clk 0:01:01]}  Ra2 {[%clk 0:02:33]} 46. Bc1 {[%clk 0:01:02]}  Ke6 {[%clk 0:02:31]} 47. Ke3 {[%clk 0:00:59]}  Kf5 {[%clk 0:02:31]} 48. Rf1 {[%clk 0:00:56]}  Bf3 {[%clk 0:02:32]} 49. Re1 {[%clk 0:00:50]}  Kg4 {[%clk 0:02:32]} 50. Kf2 {[%clk 0:00:50]}  Ra1 {[%clk 0:02:32]} 51. Bd2 {[%clk 0:00:48]}  Ra2 {[%clk 0:02:32]} 52. Bc1 {[%clk 0:00:48]}  f6 {[%clk 0:02:32]} 53. Rg1 {[%clk 0:00:41]}  Ra1 {[%clk 0:02:32]} 54. Re1 {[%clk 0:00:40]}  Rb1 {[%clk 0:02:32]} 55. Rg1 {[%clk 0:00:36]}  Kf5 {[%clk 0:02:30]} 56. Re1 {[%clk 0:00:35]}  Ke6 {[%clk 0:02:28]} 57. Ke3 {[%clk 0:00:35]}  Bg4 {[%clk 0:02:25]} 58. Rg1 {[%clk 0:00:34]}  Kf5 {[%clk 0:02:26]} 59. Re1 {[%clk 0:00:34]}  g5 {[%clk 0:02:26]} 60. fxg5 {[%clk 0:00:33]}  fxg5 {[%clk 0:02:27]} 61. hxg5 {[%clk 0:00:31]}  Kxg5 {[%clk 0:02:27]} 62. Kf2+ {[%clk 0:00:31]}  Kf5 {[%clk 0:02:28]} 63. Rg1 {[%clk 0:00:29]}  Bf3 {[%clk 0:02:28]} 64. Re1 {[%clk 0:00:29]}  Kg4 {[%clk 0:02:28]} 65. Rg1 {[%clk 0:00:28]}  Ra1 {[%clk 0:02:26]} 66. Re1 {[%clk 0:00:28]}  Ra8 {[%clk 0:02:27]} 67. Bf4 {[%clk 0:00:27]}  Rg8 {[%clk 0:02:26]} 68. Be5 {[%clk 0:00:26]}  Kf5 {[%clk 0:02:24]} 69. Ke3 {[%clk 0:00:26]}  Ra8 {[%clk 0:02:23]} 70. Kf2 {[%clk 0:00:22]}  Ra2 {[%clk 0:02:23]} 71. Rb1 {[%clk 0:00:23]}  Kg4 {[%clk 0:02:24]} 72. Bd6 {[%clk 0:00:19]}  e3+ {[%clk 0:02:24]} 73. Kxe3 {[%clk 0:00:18]}  Be4 {[%clk 0:02:24]} 74. Rf1 {[%clk 0:00:13]}  Rxb2 {[%clk 0:02:25]} 75. Rf4+ {[%clk 0:00:11]}  Kg5 {[%clk 0:02:25]} 76. Rxe4 {[%clk 0:00:11]}  dxe4 {[%clk 0:02:25]} 77. Kxe4 {[%clk 0:00:12]}  Rc2 {[%clk 0:02:25]} 78. Ba3 {[%clk 0:00:09]}  b2 {[%clk 0:02:26]} 79. Bxb2 {[%clk 0:00:09]}  Rxb2 {[%clk 0:02:27]} 80. Kd5 {[%clk 0:00:09]}  Rg2 {[%clk 0:02:28]} 81. Kxc4 {[%clk 0:00:09]}  Rxg3 {[%clk 0:02:28]} 82. d5 {[%clk 0:00:10]}  Kf6 {[%clk 0:02:28]} 83. Kc5 {[%clk 0:00:10]}  Ke7 {[%clk 0:02:29]} 84. c4 {[%clk 0:00:10]}  Kd7 {[%clk 0:02:30]} 85. Kb6 {[%clk 0:00:09]}  h4 {[%clk 0:02:31]} 86. c5 {[%clk 0:00:08]}  Rb3+ {[%clk 0:02:31]} 87. Ka7 {[%clk 0:00:06]}  h3 {[%clk 0:02:32]} 0-1


[Site "https://www.chess.com"]

[Event "Titled Tuesday Blitz March 01 Late 2022"]
[White "Rustemov, Alexander"]
[Black "Sargsyan, Anna M."]
[WhiteFideId "4119002"]
[BlackFideId "13308130"]
[WhiteElo "2791"]
[BlackElo "2271"]
[Result "1-0"]
[Round "11"]
[TimeControl "180+1"]
[Date "2022.03.01"]
[WhiteClock "0:00:26"]
[BlackClock "0:00:06"]

1. d4 {[%clk 0:03:00]}  Nf6 {[%clk 0:02:59]} 2. c4 {[%clk 0:03:01]}  g6 {[%clk 0:02:59]} 3. Nf3 {[%clk 0:03:01]}  Bg7 {[%clk 0:02:59]} 4. g3 {[%clk 0:03:02]}  O-O {[%clk 0:02:59]} 5. Bg2 {[%clk 0:03:02]}  c6 {[%clk 0:02:59]} 6. Nc3 {[%clk 0:03:02]}  d5 {[%clk 0:03:00]} 7. Qb3 {[%clk 0:03:02]}  Qb6 {[%clk 0:02:36]} 8. O-O {[%clk 0:02:58]}  Bf5 {[%clk 0:02:31]} 9. Bf4 {[%clk 0:02:47]}  Nbd7 {[%clk 0:02:20]} 10. Ne5 {[%clk 0:02:11]}  Qxd4 {[%clk 0:01:51]} 11. Nxd7 {[%clk 0:01:58]}  Nxd7 {[%clk 0:00:26]} 12. cxd5 {[%clk 0:01:47]}  cxd5 {[%clk 0:00:25]} 13. Rfd1 {[%clk 0:01:42]}  Qb6 {[%clk 0:00:25]} 14. Nxd5 {[%clk 0:01:31]}  Qxb3 {[%clk 0:00:24]} 15. Nxe7+ {[%clk 0:01:19]}  Kh8 {[%clk 0:00:25]} 16. axb3 {[%clk 0:01:20]}  Be6 {[%clk 0:00:25]} 17. Bxb7 {[%clk 0:01:08]}  Rae8 {[%clk 0:00:26]} 18. Bd6 {[%clk 0:01:06]}  Bxb2 {[%clk 0:00:24]} 19. Rxa7 {[%clk 0:00:57]}  Be5 {[%clk 0:00:25]} 20. Ba3 {[%clk 0:00:45]}  Nf6 {[%clk 0:00:15]} 21. Nc6 {[%clk 0:00:41]}  Bxb3 {[%clk 0:00:16]} 22. Rb1 {[%clk 0:00:33]}  Bc2 {[%clk 0:00:15]} 23. Rc1 {[%clk 0:00:33]}  Bf5 {[%clk 0:00:06]} 24. Nxe5 {[%clk 0:00:32]}  Kg7 {[%clk 0:00:04]} 25. Bxf8+ {[%clk 0:00:31]}  Kxf8 {[%clk 0:00:05]} 26. f4 {[%clk 0:00:27]}  Be4 {[%clk 0:00:05]} 27. Bxe4 {[%clk 0:00:26]}  Nxe4 {[%clk 0:00:06]} 28. Rxf7+ {[%clk 0:00:26]}  Kg8 {[%clk 0:00:06]} 29. Rcc7 {[%clk 0:00:26]} 1-0


[Site "https://www.chess.com"]

[Event "Titled Tuesday Blitz March 01 Late 2022"]
[White "Sarkar, Justin"]
[Black "Dias, Joao Batista"]
[WhiteFideId "2010011"]
[BlackFideId "2108240"]
[WhiteElo "2038"]
[BlackElo "1898"]
[Result "1-0"]
[Round "11"]
[TimeControl "180+1"]
[Date "2022.03.02"]
[WhiteClock "0:00:04"]
[BlackClock "0:01:08"]

1. e4 {[%clk 0:02:48]}  e5 {[%clk 0:02:59]} 2. f4 {[%clk 0:02:47]}  exf4 {[%clk 0:02:58]} 3. Nf3 {[%clk 0:02:46]}  d5 {[%clk 0:02:58]} 4. exd5 {[%clk 0:02:41]}  Nf6 {[%clk 0:02:57]} 5. Nc3 {[%clk 0:02:38]}  Nxd5 {[%clk 0:02:57]} 6. Bc4 {[%clk 0:02:33]}  Nxc3 {[%clk 0:02:56]} 7. bxc3 {[%clk 0:02:29]}  Bd6 {[%clk 0:02:55]} 8. O-O {[%clk 0:02:24]}  O-O {[%clk 0:02:55]} 9. d4 {[%clk 0:02:22]}  Bg4 {[%clk 0:02:55]} 10. Qe1 {[%clk 0:02:13]}  Nd7 {[%clk 0:02:52]} 11. Qf2 {[%clk 0:01:57]}  h6 {[%clk 0:02:47]} 12. Ne1 {[%clk 0:01:45]}  Nb6 {[%clk 0:02:40]} 13. Bb3 {[%clk 0:01:32]}  g5 {[%clk 0:02:12]} 14. c4 {[%clk 0:01:30]}  Bb4 {[%clk 0:02:08]} 15. Bb2 {[%clk 0:01:19]}  Bxe1 {[%clk 0:02:06]} 16. Raxe1 {[%clk 0:01:16]}  Re8 {[%clk 0:02:05]} 17. c5 {[%clk 0:01:12]}  Rxe1 {[%clk 0:02:00]} 18. Rxe1 {[%clk 0:01:10]}  Nd5 {[%clk 0:02:00]} 19. h4 {[%clk 0:00:28]}  c6 {[%clk 0:01:53]} 20. hxg5 {[%clk 0:00:25]}  hxg5 {[%clk 0:01:53]} 21. g3 {[%clk 0:00:11]}  Qf6 {[%clk 0:01:47]} 22. c4 {[%clk 0:00:05]}  Ne3 {[%clk 0:01:43]} 23. Rxe3 {[%clk 0:00:04]}  Qg6 {[%clk 0:01:37]} 24. Re5 {[%clk 0:00:03]}  Qb1+ {[%clk 0:01:32]} 25. Re1 {[%clk 0:00:03]}  Qf5 {[%clk 0:01:24]} 26. d5 {[%clk 0:00:03]}  Qd3 {[%clk 0:01:11]} 27. gxf4 {[%clk 0:00:03]}  gxf4 {[%clk 0:01:10]} 28. Qxf4 {[%clk 0:00:03]}  Qh3 {[%clk 0:01:09]} 29. Qg5+ {[%clk 0:00:03]}  Kf8 {[%clk 0:01:08]} 30. Qg7# {[%clk 0:00:04]} 1-0


[Site "https://www.chess.com"]

[Event "Titled Tuesday Blitz March 01 Late 2022"]
[White "Tari, Aryan"]
[Black "Sarana, Alexey"]
[WhiteFideId "1510045"]
[BlackFideId "24133795"]
[WhiteElo "2567"]
[BlackElo "2665"]
[Result "1-0"]
[Round "11"]
[TimeControl "180+1"]
[Date "2022.03.01"]
[WhiteClock "0:00:37"]
[BlackClock "0:00:01"]

1. e4 {[%clk 0:03:00]}  c5 {[%clk 0:03:00]} 2. Nc3 {[%clk 0:03:00]}  d6 {[%clk 0:03:00]} 3. f4 {[%clk 0:03:00]}  Nc6 {[%clk 0:03:00]} 4. Nf3 {[%clk 0:02:59]}  Nf6 {[%clk 0:02:55]} 5. Bb5 {[%clk 0:02:56]}  Bd7 {[%clk 0:02:55]} 6. e5 {[%clk 0:02:49]}  Ng4 {[%clk 0:02:55]} 7. O-O {[%clk 0:02:44]}  e6 {[%clk 0:02:51]} 8. d3 {[%clk 0:02:38]}  a6 {[%clk 0:02:51]} 9. Bxc6 {[%clk 0:02:37]}  Bxc6 {[%clk 0:02:52]} 10. Qe2 {[%clk 0:02:31]}  Nh6 {[%clk 0:02:46]} 11. Ne4 {[%clk 0:02:30]}  Be7 {[%clk 0:02:40]} 12. exd6 {[%clk 0:02:19]}  Bxd6 {[%clk 0:02:40]} 13. Ne5 {[%clk 0:02:09]}  Bxe4 {[%clk 0:01:38]} 14. dxe4 {[%clk 0:02:01]}  O-O {[%clk 0:01:38]} 15. a4 {[%clk 0:01:57]}  Bc7 {[%clk 0:01:28]} 16. c3 {[%clk 0:01:53]}  Qe7 {[%clk 0:01:10]} 17. Be3 {[%clk 0:01:51]}  f6 {[%clk 0:01:03]} 18. Nc4 {[%clk 0:01:43]}  Rfc8 {[%clk 0:00:55]} 19. a5 {[%clk 0:01:43]}  Nf7 {[%clk 0:00:54]} 20. h3 {[%clk 0:01:39]}  Bd8 {[%clk 0:00:43]} 21. Qf2 {[%clk 0:01:36]}  Nd6 {[%clk 0:00:26]} 22. Nd2 {[%clk 0:01:31]}  Qc7 {[%clk 0:00:23]} 23. Qe2 {[%clk 0:01:16]}  Be7 {[%clk 0:00:23]} 24. e5 {[%clk 0:01:15]}  fxe5 {[%clk 0:00:22]} 25. fxe5 {[%clk 0:01:14]}  Nf5 {[%clk 0:00:23]} 26. Bf4 {[%clk 0:01:15]}  Qc6 {[%clk 0:00:22]} 27. Ne4 {[%clk 0:01:11]}  Rf8 {[%clk 0:00:21]} 28. Kh2 {[%clk 0:01:08]}  Rad8 {[%clk 0:00:21]} 29. Rad1 {[%clk 0:01:03]}  c4 {[%clk 0:00:22]} 30. Nd6 {[%clk 0:01:00]}  Kh8 {[%clk 0:00:13]} 31. Nxc4 {[%clk 0:00:56]}  Qb5 {[%clk 0:00:13]} 32. Qe4 {[%clk 0:00:53]}  Qb3 {[%clk 0:00:09]} 33. Nd6 {[%clk 0:00:50]}  Qxb2 {[%clk 0:00:06]} 34. Rd3 {[%clk 0:00:46]}  Qc2 {[%clk 0:00:04]} 35. Nf7+ {[%clk 0:00:42]}  Kg8 {[%clk 0:00:03]} 36. Nxd8 {[%clk 0:00:42]}  Bxd8 {[%clk 0:00:04]} 37. Qc4 {[%clk 0:00:41]}  Re8 {[%clk 0:00:02]} 38. Rfd1 {[%clk 0:00:38]}  Nh4 {[%clk 0:00:01]} 39. R1d2 {[%clk 0:00:37]} 1-0


[Site "https://www.chess.com"]

[Event "Titled Tuesday Blitz March 01 Late 2022"]
[White "Van Foreest, Jorden"]
[Black "Nakamura, Hikaru"]
[WhiteFideId "1039784"]
[BlackFideId "2016192"]
[WhiteElo "2609"]
[BlackElo "2850"]
[Result "0-1"]
[Round "11"]
[TimeControl "180+1"]
[Date "2022.03.01"]
[WhiteClock "0:00:02"]
[BlackClock "0:00:06"]

1. b3 {[%clk 0:03:00]}  e5 {[%clk 0:02:58]} 2. Bb2 {[%clk 0:03:00]}  Nc6 {[%clk 0:02:59]} 3. e3 {[%clk 0:03:00]}  Nf6 {[%clk 0:02:57]} 4. Nf3 {[%clk 0:02:57]}  e4 {[%clk 0:02:44]} 5. Nd4 {[%clk 0:02:57]}  Ne5 {[%clk 0:02:41]} 6. d3 {[%clk 0:02:42]}  d5 {[%clk 0:02:31]} 7. dxe4 {[%clk 0:02:11]}  Nxe4 {[%clk 0:02:29]} 8. Be2 {[%clk 0:02:11]}  Bd6 {[%clk 0:02:27]} 9. Nb5 {[%clk 0:01:57]}  Bb4+ {[%clk 0:02:27]} 10. c3 {[%clk 0:01:57]}  Ba5 {[%clk 0:02:23]} 11. O-O {[%clk 0:01:54]}  c6 {[%clk 0:02:23]} 12. c4 {[%clk 0:01:54]}  Qe7 {[%clk 0:02:03]} 13. Qd4 {[%clk 0:01:33]}  Ng6 {[%clk 0:01:50]} 14. Ba3 {[%clk 0:01:30]}  Qh4 {[%clk 0:01:37]} 15. cxd5 {[%clk 0:01:16]}  cxb5 {[%clk 0:01:30]} 16. Bxb5+ {[%clk 0:01:17]}  Kd8 {[%clk 0:01:27]} 17. g3 {[%clk 0:01:09]}  Qf6 {[%clk 0:01:18]} 18. Qxe4 {[%clk 0:01:04]}  Qxa1 {[%clk 0:01:17]} 19. Qa4 {[%clk 0:00:37]}  Bb6 {[%clk 0:01:12]} 20. Nd2 {[%clk 0:00:37]}  Qf6 {[%clk 0:01:07]} 21. Ne4 {[%clk 0:00:36]}  Qf3 {[%clk 0:01:00]} 22. Ng5 {[%clk 0:00:36]}  Qf5 {[%clk 0:01:00]} 23. Qg4 {[%clk 0:00:34]}  Ne5 {[%clk 0:00:52]} 24. Qh4 {[%clk 0:00:23]}  f6 {[%clk 0:00:49]} 25. Qb4 {[%clk 0:00:14]}  Bd7 {[%clk 0:00:25]} 26. Qe7+ {[%clk 0:00:15]}  Kc8 {[%clk 0:00:26]} 27. Rc1+ {[%clk 0:00:15]}  Bc7 {[%clk 0:00:23]} 28. Rxc7+ {[%clk 0:00:14]}  Kxc7 {[%clk 0:00:24]} 29. Ne6+ {[%clk 0:00:15]}  Kc8 {[%clk 0:00:18]} 30. Qc5+ {[%clk 0:00:12]}  Bc6 {[%clk 0:00:13]} 31. Qd6 {[%clk 0:00:12]}  Nf3+ {[%clk 0:00:09]} 32. Kg2 {[%clk 0:00:08]}  Nh4+ {[%clk 0:00:09]} 33. Kg1 {[%clk 0:00:07]}  Nf3+ {[%clk 0:00:08]} 34. Kh1 {[%clk 0:00:04]}  Qb1+ {[%clk 0:00:07]} 35. Kg2 {[%clk 0:00:05]}  Ne1+ {[%clk 0:00:05]} 36. Kh3 {[%clk 0:00:03]}  Qf5+ {[%clk 0:00:05]} 37. g4 {[%clk 0:00:02]}  Qf3+ {[%clk 0:00:05]} 38. Kh4 {[%clk 0:00:02]}  Ng2+ {[%clk 0:00:05]} 39. Kh5 {[%clk 0:00:02]}  Qh3# {[%clk 0:00:06]} 0-1


[Site "https://www.chess.com"]

[Event "Titled Tuesday Blitz March 01 Late 2022"]
[White "Vargas Pereda, Jesus Manue"]
[Black "Desideri, Ricardo Maruchi"]
[WhiteFideId "5115710"]
[BlackFideId "2110440"]
[WhiteElo "1779"]
[BlackElo "1945"]
[Result "0-1"]
[Round "11"]
[TimeControl "180+1"]
[Date "2022.03.02"]
[WhiteClock "0:00:37"]
[BlackClock "0:01:02"]

1. d4 {[%clk 0:02:58]}  Nf6 {[%clk 0:02:59]} 2. Bf4 {[%clk 0:02:57]}  d6 {[%clk 0:02:56]} 3. Nf3 {[%clk 0:02:47]}  g6 {[%clk 0:02:55]} 4. Nc3 {[%clk 0:02:42]}  Bg7 {[%clk 0:02:50]} 5. e4 {[%clk 0:02:41]}  c6 {[%clk 0:02:50]} 6. Qd2 {[%clk 0:02:41]}  h5 {[%clk 0:02:48]} 7. O-O-O {[%clk 0:02:40]}  Nbd7 {[%clk 0:02:45]} 8. Bc4 {[%clk 0:02:39]}  b5 {[%clk 0:02:41]} 9. Bb3 {[%clk 0:02:38]}  a5 {[%clk 0:02:40]} 10. Bxf7+ {[%clk 0:02:13]}  Kxf7 {[%clk 0:02:39]} 11. Ng5+ {[%clk 0:02:13]}  Kg8 {[%clk 0:02:31]} 12. e5 {[%clk 0:02:05]}  Nd5 {[%clk 0:02:15]} 13. Nxd5 {[%clk 0:01:34]}  cxd5 {[%clk 0:02:15]} 14. exd6 {[%clk 0:01:31]}  Nf6 {[%clk 0:02:12]} 15. dxe7 {[%clk 0:01:23]}  Qxe7 {[%clk 0:02:12]} 16. Rhe1 {[%clk 0:01:24]}  Ne4 {[%clk 0:01:48]} 17. Qd3 {[%clk 0:01:07]}  Qf6 {[%clk 0:01:45]} 18. Nxe4 {[%clk 0:01:02]}  dxe4 {[%clk 0:01:39]} 19. Rxe4 {[%clk 0:01:01]}  Bf5 {[%clk 0:01:35]} 20. Qb3+ {[%clk 0:00:59]}  Kh7 {[%clk 0:01:32]} 21. Be5 {[%clk 0:00:57]}  Qg5+ {[%clk 0:01:21]} 22. f4 {[%clk 0:00:57]}  Qxg2 {[%clk 0:01:15]} 23. Qf7 {[%clk 0:00:56]}  Rhg8 {[%clk 0:01:09]} 24. Rd2 {[%clk 0:00:38]}  Qh1+ {[%clk 0:01:04]} 25. Rd1 {[%clk 0:00:37]}  Qxe4 {[%clk 0:01:02]} 0-1


[Site "https://www.chess.com"]

[Event "Titled Tuesday Blitz March 01 Late 2022"]
[White "Voit, Daria"]
[Black "Tanenbaum, Zachary"]
[WhiteFideId "4182146"]
[BlackFideId "2060850"]
[WhiteElo "2323"]
[BlackElo "2168"]
[Result "0-1"]
[Round "11"]
[TimeControl "180+1"]
[Date "2022.03.01"]
[WhiteClock "0:00:25"]
[BlackClock "0:01:15"]

1. c4 {[%clk 0:03:00]}  e5 {[%clk 0:03:00]} 2. Nc3 {[%clk 0:03:00]}  Nc6 {[%clk 0:03:00]} 3. g3 {[%clk 0:03:00]}  Nf6 {[%clk 0:03:01]} 4. Bg2 {[%clk 0:03:01]}  Bc5 {[%clk 0:03:01]} 5. Nf3 {[%clk 0:03:00]}  e4 {[%clk 0:02:59]} 6. Nh4 {[%clk 0:02:51]}  Qe7 {[%clk 0:02:59]} 7. Nf5 {[%clk 0:02:28]}  Qe5 {[%clk 0:02:58]} 8. Ne3 {[%clk 0:02:27]}  O-O {[%clk 0:02:56]} 9. O-O {[%clk 0:02:27]}  d6 {[%clk 0:02:55]} 10. Na4 {[%clk 0:02:25]}  Bd4 {[%clk 0:02:50]} 11. Rb1 {[%clk 0:02:23]}  Qh5 {[%clk 0:02:44]} 12. b4 {[%clk 0:02:19]}  Bh3 {[%clk 0:02:43]} 13. Re1 {[%clk 0:01:57]}  Bxe3 {[%clk 0:02:35]} 14. dxe3 {[%clk 0:01:55]}  Ng4 {[%clk 0:02:33]} 15. Bxe4 {[%clk 0:01:47]}  Nxh2 {[%clk 0:02:14]} 16. Qd5 {[%clk 0:01:28]}  Ne5 {[%clk 0:02:09]} 17. Kxh2 {[%clk 0:01:23]}  Be6+ {[%clk 0:02:09]} 18. Kg2 {[%clk 0:01:22]}  Qh3+ {[%clk 0:02:07]} 19. Kg1 {[%clk 0:01:21]}  Bxd5 {[%clk 0:02:08]} 20. cxd5 {[%clk 0:01:20]}  Ng4 {[%clk 0:02:07]} 21. Bg2 {[%clk 0:01:20]}  Qh2+ {[%clk 0:02:07]} 22. Kf1 {[%clk 0:01:20]}  f5 {[%clk 0:02:01]} 23. Bb2 {[%clk 0:01:16]}  Rae8 {[%clk 0:02:00]} 24. Bd4 {[%clk 0:01:13]}  Re4 {[%clk 0:01:39]} 25. Rec1 {[%clk 0:01:10]}  Nxf2 {[%clk 0:01:25]} 26. Rxc7 {[%clk 0:00:55]}  Rg4 {[%clk 0:01:15]} 27. Rxg7+ {[%clk 0:00:35]}  Rxg7 {[%clk 0:01:15]} 28. Bxg7 {[%clk 0:00:35]}  Qxg3 {[%clk 0:01:15]} 29. Bxf8 {[%clk 0:00:30]}  Ng4 {[%clk 0:01:15]} 30. Kg1 {[%clk 0:00:25]}  Nxe3 {[%clk 0:01:15]} 0-1


[Site "https://www.chess.com"]